{"text_format":"3","workbook":"xlsx","n_sheets":2,"sheets":["Stroški","Kategorija"],"not_rendered":{"defined_names":5},"read":"whole","date_system":"1900"}

{"sheet":"Stroški","index":0,"n_rows":25,"n_cols":7,"rows_kept":25,"merged":[[0,1,0,5],[1,1,1,6]]}
[null,"PRORAČUN ZA STROŠKE",{"$nulls":4},{"$f":"TODAY()","v":"2018-06-19"}]
[null,"Ime podjetja"]
[null,"Stroški","Kategorija","Proračun","Dejansko","Razlika (€)","Razlika (%)"]
[null,"Oglaševanje","Operativni stroški",null,null,{"$f":"IFERROR(SUM(Stroški[Proračun]-Stroški[Dejansko]), \"\")","v":0},{"$f":"IFERROR(SUM(Stroški[Razlika (€)]/Stroški[Proračun]),\"\")","v":""}]
[null,"Dolgovi","Operativni stroški",null,null,{"$f":"IFERROR(SUM(Stroški[Proračun]-Stroški[Dejansko]), \"\")","v":0},{"$f":"IFERROR(SUM(Stroški[Razlika (€)]/Stroški[Proračun]),\"\")","v":""}]
[null,"Dodatki","Operativni stroški",null,null,{"$f":"IFERROR(SUM(Stroški[Proračun]-Stroški[Dejansko]), \"\")","v":0},{"$f":"IFERROR(SUM(Stroški[Razlika (€)]/Stroški[Proračun]),\"\")","v":""}]
[null,"Zaloge","Operativni stroški",null,null,{"$f":"IFERROR(SUM(Stroški[Proračun]-Stroški[Dejansko]), \"\")","v":0},{"$f":"IFERROR(SUM(Stroški[Razlika (€)]/Stroški[Proračun]),\"\")","v":""}]
[null,"Poštnina","Operativni stroški",null,null,{"$f":"IFERROR(SUM(Stroški[Proračun]-Stroški[Dejansko]), \"\")","v":0},{"$f":"IFERROR(SUM(Stroški[Razlika (€)]/Stroški[Proračun]),\"\")","v":""}]
[null,"Najemnina ali hipoteka","Operativni stroški",null,null,{"$f":"IFERROR(SUM(Stroški[Proračun]-Stroški[Dejansko]), \"\")","v":0},{"$f":"IFERROR(SUM(Stroški[Razlika (€)]/Stroški[Proračun]),\"\")","v":""}]
[null,"Stroški prodaje","Operativni stroški",null,null,{"$f":"IFERROR(SUM(Stroški[Proračun]-Stroški[Dejansko]), \"\")","v":0},{"$f":"IFERROR(SUM(Stroški[Razlika (€)]/Stroški[Proračun]),\"\")","v":""}]
[null,"Davki","Operativni stroški",null,null,{"$f":"IFERROR(SUM(Stroški[Proračun]-Stroški[Dejansko]), \"\")","v":0},{"$f":"IFERROR(SUM(Stroški[Razlika (€)]/Stroški[Proračun]),\"\")","v":""}]
[null,"Potrebščine","Operativni stroški",null,null,{"$f":"IFERROR(SUM(Stroški[Proračun]-Stroški[Dejansko]), \"\")","v":0},{"$f":"IFERROR(SUM(Stroški[Razlika (€)]/Stroški[Proračun]),\"\")","v":""}]
[null,"Drugo","Operativni stroški",null,null,{"$f":"IFERROR(SUM(Stroški[Proračun]-Stroški[Dejansko]), \"\")","v":0},{"$f":"IFERROR(SUM(Stroški[Razlika (€)]/Stroški[Proračun]),\"\")","v":""}]
[null,"Zavarovanje","Operativni stroški",null,null,{"$f":"IFERROR(SUM(Stroški[Proračun]-Stroški[Dejansko]), \"\")","v":0},{"$f":"IFERROR(SUM(Stroški[Razlika (€)]/Stroški[Proračun]),\"\")","v":""}]
[null,"Obresti","Operativni stroški",null,null,{"$f":"IFERROR(SUM(Stroški[Proračun]-Stroški[Dejansko]), \"\")","v":0},{"$f":"IFERROR(SUM(Stroški[Razlika (€)]/Stroški[Proračun]),\"\")","v":""}]
[null,"Telefon","Operativni stroški",null,null,{"$f":"IFERROR(SUM(Stroški[Proračun]-Stroški[Dejansko]), \"\")","v":0},{"$f":"IFERROR(SUM(Stroški[Razlika (€)]/Stroški[Proračun]),\"\")","v":""}]
[null,"Vzdrževanje in popravila","Operativni stroški",null,null,{"$f":"IFERROR(SUM(Stroški[Proračun]-Stroški[Dejansko]), \"\")","v":0},{"$f":"IFERROR(SUM(Stroški[Razlika (€)]/Stroški[Proračun]),\"\")","v":""}]
[null,"Pravni stroški","Operativni stroški",null,null,{"$f":"IFERROR(SUM(Stroški[Proračun]-Stroški[Dejansko]), \"\")","v":0},{"$f":"IFERROR(SUM(Stroški[Razlika (€)]/Stroški[Proračun]),\"\")","v":""}]
[null,"Amortizacija","Operativni stroški",null,null,{"$f":"IFERROR(SUM(Stroški[Proračun]-Stroški[Dejansko]), \"\")","v":0},{"$f":"IFERROR(SUM(Stroški[Razlika (€)]/Stroški[Proračun]),\"\")","v":""}]
[null,"Dostava","Operativni stroški",null,null,{"$f":"IFERROR(SUM(Stroški[Proračun]-Stroški[Dejansko]), \"\")","v":0},{"$f":"IFERROR(SUM(Stroški[Razlika (€)]/Stroški[Proračun]),\"\")","v":""}]
[null,"Skladiščenje","Operativni stroški",null,null,{"$f":"IFERROR(SUM(Stroški[Proračun]-Stroški[Dejansko]), \"\")","v":0},{"$f":"IFERROR(SUM(Stroški[Razlika (€)]/Stroški[Proračun]),\"\")","v":""}]
[null,"Trgovina","Osebni stroški",null,null,{"$f":"IFERROR(SUM(Stroški[Proračun]-Stroški[Dejansko]), \"\")","v":0},{"$f":"IFERROR(SUM(Stroški[Razlika (€)]/Stroški[Proračun]),\"\")","v":""}]
[null,"Prodajalci","Osebni stroški",null,null,{"$f":"IFERROR(SUM(Stroški[Proračun]-Stroški[Dejansko]), \"\")","v":0},{"$f":"IFERROR(SUM(Stroški[Razlika (€)]/Stroški[Proračun]),\"\")","v":""}]
[null,"Drugo","Osebni stroški",null,null,{"$f":"IFERROR(SUM(Stroški[Proračun]-Stroški[Dejansko]), \"\")","v":0},{"$f":"IFERROR(SUM(Stroški[Razlika (€)]/Stroški[Proračun]),\"\")","v":""}]
[null,"Stroški skupaj",null,{"$f":"IFERROR(SUM(Stroški[Proračun]), \"\")","v":0},{"$f":"IFERROR(SUM(Stroški[Dejansko]), \"\")","v":0},{"$f":"IFERROR(SUM(Stroški[Razlika (€)]), \"\")","v":0},{"$f":"IFERROR(SUM(Stroški[[#Totals],[Razlika (€)]]/Stroški[[#Totals],[Proračun]]),\"\")","v":""}]

{"sheet":"Kategorija","index":1,"n_rows":4,"n_cols":2,"rows_kept":4}
[null,"Iskanje kategorije"]
[null,"Kategorija"]
[null,"Operativni stroški"]
[null,"Osebni stroški"]